fUSD/lending_fUSD_20260421
["ID","MTS","AMOUNT","RATE_DAILY","PERIOD"]
[420937658,1776753040695,-151.0,0.0001,2]
[420937659,1776753040705,-151.0,0.0001,2]
[420937660,1776753040715,-151.0,0.0001,2]
[420937661,1776753040725,-151.0,0.0001,2]
[420937662,1776753040734,-151.0,0.0001,2]
[420937663,1776753040744,-151.0,0.0001,2]
[420937664,1776753040754,-151.0,0.0001,2]
[420937665,1776753040764,-151.0,0.0001,2]
[420937666,1776753040774,-151.0,0.0001,2]
[420937667,1776753040784,-151.0,0.0001,2]
[420937668,1776753040794,-500.0,0.0001,2]
[420937669,1776753040805,-500.0,0.0001,2]
[420937671,1776753040814,-197.80971239,0.0001,2]
[420937672,1776753040828,-302.19028761,0.0001,2]
[420937673,1776753040838,-500.0,0.0001,2]
[420937674,1776753040848,-500.0,0.0001,2]
[420937675,1776753040858,-500.0,0.0001,2]
[420937677,1776753040868,-500.0,0.0001,2]
[420937678,1776753040878,-500.0,0.0001,2]
[420937680,1776753040888,-500.0,0.0001,2]
[420937685,1776753041475,-1601.38,0.00010037,2]
[420937686,1776753041615,-206.97880469,0.00010079,2]
[420937687,1776753041625,-238.43487039,0.000101,2]
[420937688,1776753041635,-578.20924308,0.00010102,2]
[420937689,1776753041645,-710.2018258,0.00010102,2]
[420937696,1776753043334,-999.87109461,0.00010102,2]
[420937720,1776753046241,-1777.293386,0.00010102,2]
[420937758,1776753258293,500.0,0.00016226,30]
[420937759,1776753258438,500.0,0.00016226,30]
[420937760,1776753258820,500.0,0.00016226,30]
[420937761,1776753258914,150.0,0.00016226,30]
[420937762,1776753259017,500.0,0.00016226,30]
[420937763,1776753259124,500.0,0.00016226,30]
[420937764,1776753259302,500.0,0.00016226,30]
[420937765,1776753259461,500.0,0.00016226,30]
[420937766,1776753259613,500.0,0.00016226,30]
[420937767,1776753259795,500.0,0.00016226,30]
[420937768,1776753259955,500.0,0.00016226,30]
[420937769,1776753260135,389.7308064,0.00016226,30]
[420937773,1776753415616,178.09,7.464e-05,2]
[420937774,1776753485709,150.0,0.00016226,30]
[420937775,1776753695907,150.0,0.00016226,30]
[420937776,1776753695947,211.47088108,0.00016226,30]
[420937780,1776754124027,-150.0,9.088e-05,2]
[420937781,1776754128448,-150.0,9.088e-05,2]
[420937782,1776754131450,-150.0,9.088e-05,2]
[420937786,1776754233319,-50.0,9.088e-05,2]
[420937787,1776754233329,-250.0,9.1e-05,2]
[420937788,1776754233340,-3071.81881226,9.1e-05,2]
[420937789,1776754238528,-3445.02902022,9.1e-05,2]
[420937790,1776754238540,-709.81216752,9.1e-05,2]
[420937791,1776754238550,-1116.32649408,9.196e-05,2]
[420937792,1776754238896,-83.67350592,9.196e-05,2]
[420937793,1776754238941,-2000.0,9.197e-05,2]
[420937794,1776754238951,-177.76967053,9.197e-05,2]
[420937795,1776754238960,-300.0,9.226e-05,2]
[420937796,1776754238970,-164.76,9.257e-05,2]
[420937797,1776754238980,-500.0,9.282e-05,3]
[420937798,1776754238989,-500.0,9.451e-05,2]
[420937799,1776754238998,-190.50540813,9.464e-05,2]
[420937800,1776754239007,-250.6328223,9.639e-05,2]
[420937801,1776754239017,-260.0,9.863e-05,2]
[420937802,1776754239026,-617.0310309,9.9e-05,2]
[420937803,1776754239105,-816.62506821,9.9e-05,2]
[420937804,1776754239117,-338.31419835,9.9e-05,2]
[420937823,1776754239528,-228.02970254,9.9e-05,2]
[420937825,1776754239538,-6272.1109104,9.975e-05,2]
[420937827,1776754239548,-150.0,9.982e-05,2]
[420937828,1776754239558,-153.5701851,9.983e-05,2]
[420937829,1776754239567,-9999.99,9.983e-05,2]
[420937830,1776754239576,-150.99,9.983e-05,2]
[420937831,1776754239586,-542.86,9.983e-05,2]
[420937832,1776754239596,-3478.0,0.0001,2]
[420937833,1776754239606,-578.20924308,0.00010031,2]
[420937834,1776754239615,-500.0,0.00010031,2]
[420937835,1776754239624,-9552.16786547,0.00010031,2]
[420937836,1776754239634,-151.0,0.00010031,2]
[420937838,1776754239644,-209.40437684,0.00010031,2]
[420937840,1776754239653,-203.87379393,0.00010031,2]
[420937841,1776754239664,-174.61919142,0.00010031,2]
[420937842,1776754239673,-764.99227377,0.00010031,2]
[420937843,1776754239682,-48520.5006,0.00010058,2]
[420937845,1776754239691,-300.0,0.00010067,2]
[420937846,1776754239700,-2500.0,0.00010067,2]
[420937848,1776754239709,-500.0,0.00010086,2]
[420937850,1776754239718,-9905.5980765,0.00010086,2]
[420937852,1776754239727,-151.0,0.00010086,2]
[420937854,1776754239737,-1084.0,0.00010116,2]
[420937856,1776754239747,-500.0,0.00010141,2]
[420937858,1776754239756,-10272.10520533,0.00010141,2]
[420937860,1776754239766,-151.0,0.00010141,2]
[420937862,1776754239775,-420.0,0.00010149,2]
[420937864,1776754239785,-151.0,0.00010161,2]
[420937866,1776754239795,-1428.38747117,0.00010161,2]
[420937868,1776754239804,-721.12765535,0.00010161,2]
[420937870,1776754239813,-151.0,0.00010161,2]
[420937871,1776754239823,-151.0,0.00010161,2]
[420937872,1776754239832,-151.0,0.00010161,2]
[420937873,1776754239840,-151.0,0.00010161,2]
[420937874,1776754239850,-151.0,0.00010161,2]
[420937875,1776754239859,-151.0,0.00010161,2]
[420937876,1776754239868,-151.0,0.00010161,2]
[420937877,1776754239877,-151.0,0.00010161,2]
[420937878,1776754239887,-151.0,0.00010161,2]
[420937879,1776754239896,-151.0,0.00010161,2]
[420937880,1776754239905,-1000.0,0.00010161,2]
[420937881,1776754239914,-1000.0,0.00010161,2]
[420937882,1776754239923,-1000.0,0.00010161,2]
[420937883,1776754239932,-1000.0,0.00010161,2]
[420937884,1776754239942,-1000.0,0.00010161,2]
[420937885,1776754239951,-1000.0,0.00010161,2]
[420937886,1776754239960,-1125.76505022,0.00010161,2]
[420937887,1776754239970,-287.37033828,0.00010161,2]
[420937888,1776754239979,-188.7255859,0.00010161,2]
[420937889,1776754239988,-500.0,0.00010164,2]
[420937890,1776754239999,-585.95925954,0.00010166,2]
[420937891,1776754240008,-500.0,0.00010166,2]
[420937892,1776754240018,-500.0,0.00010166,2]
[420937893,1776754240028,-330.65045859,0.00010166,2]
[420937894,1776754240037,-500.0,0.00010166,2]
[420937895,1776754240047,-500.0,0.00010166,2]
[420937896,1776754240057,-500.0,0.00010166,2]
[420937897,1776754240066,-500.0,0.00010166,2]
[420937898,1776754240076,-500.0,0.00010166,2]
[420937899,1776754240086,-500.0,0.00010166,2]
[420937900,1776754240095,-607.0297237,0.00010166,2]
[420937901,1776754240107,-500.0,0.00010166,2]
[420937902,1776754240118,-500.0,0.00010166,2]
[420937903,1776754240128,-151.0,0.00010167,2]
[420937904,1776754240137,-185585.0093,0.00010167,2]
[420937905,1776754240146,-502.74187909,0.00010167,2]
[420937906,1776754240157,-2000.0,0.00010172,2]
[420937907,1776754240166,-164.76,0.00010183,2]
[420937909,1776754240176,-500.0,0.00010196,2]
[420937911,1776754240185,-7478.52986375,0.00010196,2]
[420937913,1776754240195,-151.0,0.00010196,2]
[420937915,1776754240205,-1035.57726312,0.0001025,2]
[420937917,1776754240216,-1600.0,0.0001025,2]
[420937919,1776754240226,-500.0,0.00010251,2]
[420937921,1776754240235,-151.0,0.00010251,2]
[420937923,1776754240245,-151.0,0.00010264,2]
[420937925,1776754240255,-500.0,0.00010306,2]
[420937927,1776754240265,-152.479077,0.00010329,2]
[420937929,1776754240275,-500.0,0.00010361,2]
[420937931,1776754240284,-185.6,0.00010437,2]
[420937933,1776754240294,-1871.25342183,0.00010486,2]
[420937936,1776754240304,-5310.76,0.00010493,2]
[420937937,1776754240314,-1349.0,0.00010514,2]
[420937940,1776754240323,-3530.0,0.00010514,2]
[420937943,1776754240333,-1048.0,0.00010514,2]
[420937946,1776754240343,-1265.0,0.00010514,2]
[420937949,1776754240352,-150.134,0.00010514,2]
[420937952,1776754240361,-416.0,0.00010514,2]
[420937955,1776754240370,-3780.0,0.00010514,2]
[420937957,1776754240379,-2000.0,0.0001059,2]
[420937959,1776754240389,-2000.0,0.0001059,2]
[420937960,1776754240399,-2000.0,0.0001059,2]
[420937961,1776754240408,-2000.0,0.0001059,2]
[420937962,1776754240418,-4653.69,0.00010599,2]
[420937964,1776754240427,-317.508,0.00010599,2]
[420937966,1776754240437,-158.0,0.000106,2]
[420937968,1776754240446,-158.0,0.000106,2]
[420937970,1776754240457,-158.0,0.000106,2]
[420937972,1776754240467,-273.25958166,0.000106,2]
[420937974,1776754240476,-1000.0,0.000106,2]
[420937976,1776754240486,-5000.0,0.000106,2]
[420937978,1776754240495,-151.0,0.000106,2]
[420937980,1776754240505,-500.0,0.00010673,2]
[420937982,1776754240515,-500.0,0.00010673,2]
[420937984,1776754240524,-156707.44425001,0.0001069,3]
[420937985,1776754240534,-151.0,0.0001069,2]
[420937986,1776754240543,-153.51026176,0.00010697,2]
[420937987,1776754240553,-17480.92772058,0.00010699,2]
[420937988,1776754240562,-247.0,0.000107,5]
[420937989,1776754240572,-340.0,0.000107,5]
[420937990,1776754240582,-158.0,0.000107,5]
[420937991,1776754240591,-200.0,0.000107,2]
[420937992,1776754240601,-310019.75903458,0.000107,2]
[420937993,1776754240618,-1160.00000001,0.000107,2]
[420937994,1776754240629,-3798.88156914,0.000107,2]
[420937995,1776754240682,-21879.53822164,0.000107,2]
[420937996,1776754240694,-1351.1837267,0.000107,2]
[420937997,1776754241008,-5995.85330038,0.000107,2]
[420938021,1776754244953,-1247.50228122,0.00010486,2]
[420938022,1776754244962,-2474.0,0.00010574,2]
[420938023,1776754244972,-5804.49771877,0.000107,2]
[420938024,1776754246363,-67052.5565854,0.000107,2]
[420938025,1776754246417,-507.0,0.000107,2]
[420938026,1776754246473,-2304.664601,0.000107,2]
[420938027,1776754246484,-875.29575117,0.000107,2]
[420938028,1776754246583,-3786.01,0.000107,2]
[420938112,1776754293420,150.0,9.834e-05,2]
[420938113,1776754324795,5050.0,9.958e-05,2]
[420938114,1776754389991,405.0,0.000165,30]
[420938115,1776754403886,150.0,0.00016226,30]
[420938116,1776754404081,150.0,0.00016226,30]
[420938117,1776754404245,150.0,0.00016226,30]
[420938118,1776754404413,282.14193434,0.00016226,30]
[420938119,1776754607524,-200.0,9.501e-05,2]
[420938120,1776754607546,-208.89,9.542e-05,2]
[420938121,1776754607573,-1200.0,9.754e-05,2]
[420938122,1776754607596,-300.0,9.754e-05,2]
[420938123,1776754607617,-10458.11,9.755e-05,2]
[420938124,1776754623001,500.0,0.00016226,30]
[420938125,1776754623171,500.0,0.00016226,30]
[420938126,1776754623359,500.0,0.00016226,30]
[420938127,1776754623526,500.0,0.00016226,30]
[420938128,1776754623713,500.0,0.00016226,30]
[420938129,1776754623851,350.0,0.00016226,30]
[420938130,1776754658905,-350.0,9.755e-05,2]
[420938131,1776754699557,150.0,0.00016226,30]
[420938132,1776754699735,178.96925187,0.00016226,30]
[420938133,1776754699981,500.0,0.00016226,30]
[420938134,1776754700270,500.0,0.00016226,30]
[420938135,1776754700428,500.0,0.00016226,30]
[420938136,1776754700585,350.0,0.00016226,30]
[420938138,1776754808814,150.0,0.00016226,30]
[420938139,1776754809337,500.0,0.00016226,30]
[420938140,1776754809562,500.0,0.00016226,30]
[420938141,1776754809699,500.0,0.00016226,30]
[420938142,1776754809889,500.0,0.00016226,30]
[420938143,1776754810052,500.0,0.00016226,30]
[420938144,1776754810220,500.0,0.00016226,30]
[420938145,1776754811971,500.0,0.00016226,30]
[420938146,1776754812013,500.0,0.00016226,30]
[420938147,1776754812052,209.80267097,0.00016226,30]
[420938148,1776754885673,500.0,0.00016226,30]
[420938149,1776754885829,500.0,0.00016226,30]
[420938150,1776754885984,500.0,0.00016226,30]
[420938152,1776755130532,150.0,0.00016226,30]
[420938153,1776755271762,-1600.0,9.019e-05,2]
[420938154,1776755271784,-427.19,9.28e-05,2]
[420938155,1776755271807,-818.6,9.348e-05,2]
[420938156,1776755271830,-300.0,9.518e-05,2]
[420938157,1776755301579,-150.0,9.616e-05,2]
[420938158,1776755301601,-150.21102821,9.616e-05,2]
[420938159,1776755301623,-216.6162676,9.616e-05,2]
[420938160,1776755301646,-150.0,9.616e-05,2]
[420938161,1776755301668,-150.0,9.616e-05,2]
[420938162,1776755301690,-151.70461561,9.616e-05,2]
[420938163,1776755301712,-150.0,9.616e-05,2]
[420938164,1776755301733,-150.55572869,9.616e-05,2]
[420938165,1776755301756,-150.0,9.616e-05,2]
[420938166,1776755301777,-150.75656802,9.616e-05,2]
[420938167,1776755301800,-150.70020305,9.616e-05,2]
[420938168,1776755301823,-150.0,9.616e-05,2]
[420938169,1776755301846,-150.0,9.616e-05,2]
[420938170,1776755301868,-150.0,9.616e-05,2]
[420938171,1776755313666,1500.0,9.099e-05,2]
[420938172,1776755315987,560.0,0.00016226,30]
[420938173,1776755316128,560.0,0.00016226,30]
[420938174,1776755316270,560.0,0.00016226,30]
[420938175,1776755316423,560.0,0.00016226,30]
[420938176,1776755319077,560.0,0.00016226,30]
[420938177,1776755319222,560.0,0.00016226,30]
[420938178,1776755319381,560.0,0.00016226,30]
[420938179,1776755319523,560.0,0.00016226,30]
[420938180,1776755319670,560.0,0.00016226,30]
[420938181,1776755319825,560.0,0.00016226,30]
[420938182,1776755320009,560.0,0.00016226,30]
[420938183,1776755320163,560.0,0.00016226,30]
[420938184,1776755322028,560.0,0.00016226,30]
[420938185,1776755322086,560.0,0.00016226,30]
[420938186,1776755322123,560.0,0.00016226,30]
[420938187,1776755322172,560.0,0.00016226,30]
[420938188,1776755322225,560.0,0.00016226,30]
[420938189,1776755322368,560.0,0.00016226,30]
[420938190,1776755322688,560.0,0.00016226,30]
[420938191,1776755323735,560.0,0.00016226,30]
[420938192,1776755325098,560.0,0.00016226,30]
[420938193,1776755326750,560.0,0.00016226,30]
[420938194,1776755328915,560.0,0.00016226,30]
[420938195,1776755345916,567.35863995,0.00016226,30]
[420938197,1776755372438,500.0,0.00016226,30]
[420938198,1776755372478,500.0,0.00016226,30]
[420938199,1776755372569,500.0,0.00016226,30]
[420938200,1776755372757,500.0,0.00016226,30]
[420938201,1776755373021,500.0,0.00016226,30]
[420938202,1776755373224,500.0,0.00016226,30]
[420938203,1776755373335,500.0,0.00016226,30]
[420938204,1776755373480,500.0,0.00016226,30]
[420938217,1776755431450,-3101.12,9.755e-05,2]
[420938218,1776755431460,-300.0,9.781e-05,2]
[420938219,1776755431471,-52.88005973,9.781e-05,2]
[420938220,1776755431556,-97.11994027,9.781e-05,2]
[420938221,1776755431565,-1200.0,9.781e-05,2]
[420938222,1776755431575,-300.0,9.781e-05,2]
[420938223,1776755431584,-21602.88006031,9.782e-05,2]
[420938224,1776755431596,-53297.55283969,9.782e-05,2]
[420938225,1776755431605,-6678.0094,9.783e-05,2]
[420938226,1776755431615,-2500.0,9.783e-05,2]
[420938227,1776755431624,-5000.0,9.858e-05,2]
[420938228,1776755431633,-260.0,9.863e-05,2]
[420938229,1776755431643,-1926.49,9.87e-05,2]
[420938230,1776755431652,-500.0,9.882e-05,2]
[420938231,1776755431662,-5710.849,9.882e-05,2]
[420938232,1776755431671,-375.287,9.882e-05,2]
[420938233,1776755431680,-3316.65,9.882e-05,2]
[420938234,1776755431689,-9999.99,9.882e-05,2]
[420938235,1776755431698,-668.54005272,9.882e-05,2]
[420938236,1776755431707,-668.54005272,9.882e-05,2]
[420938237,1776755431716,-422.59293568,9.882e-05,2]
[420938238,1776755431739,-245.94711704,9.882e-05,2]
[420938239,1776755431749,-284.17957338,9.882e-05,2]
[420938240,1776755431761,-280.0,9.882e-05,2]
[420938243,1776755437858,-104.36047934,9.882e-05,2]
[420938244,1776755437868,-668.54005272,9.882e-05,2]
[420938245,1776755437877,-668.54005272,9.882e-05,2]
[420938246,1776755437887,-668.54005272,9.882e-05,2]
[420938247,1776755437897,-668.54005272,9.882e-05,2]
[420938248,1776755437907,-668.54005272,9.882e-05,2]
[420938249,1776755437917,-668.54005272,9.882e-05,2]
[420938250,1776755437927,-668.54005272,9.882e-05,2]
[420938251,1776755437936,-668.54005272,9.882e-05,2]
[420938252,1776755437951,-668.54005272,9.882e-05,2]
[420938253,1776755437961,-668.54005272,9.882e-05,2]
[420938254,1776755437972,-668.54005272,9.882e-05,2]
[420938255,1776755437982,-668.54005272,9.882e-05,2]
[420938256,1776755437992,-668.54005272,9.882e-05,2]
[420938257,1776755438002,-668.54005272,9.882e-05,2]
[420938258,1776755438012,-668.54005272,9.882e-05,2]
[420938259,1776755438022,-668.54005272,9.882e-05,2]
[420938260,1776755438032,-668.54005272,9.882e-05,2]
[420938261,1776755438042,-668.54005272,9.882e-05,2]
[420938262,1776755438052,-668.54005272,9.882e-05,2]
[420938263,1776755438062,-668.54005272,9.882e-05,2]
[420938264,1776755438072,-668.54005272,9.882e-05,2]
[420938265,1776755438082,-668.54005272,9.882e-05,2]
[420938266,1776755438092,-668.54005272,9.882e-05,2]
[420938267,1776755438103,-668.54005272,9.882e-05,2]
[420938268,1776755438113,-668.54005272,9.882e-05,2]
[420938269,1776755438123,-668.54005272,9.882e-05,2]
[420938270,1776755438133,-668.54005272,9.882e-05,2]
[420938271,1776755438142,-668.54005272,9.882e-05,2]
[420938272,1776755438152,-668.54005272,9.882e-05,2]
[420938273,1776755438162,-668.54005272,9.882e-05,2]
[420938274,1776755438172,-668.54005272,9.882e-05,2]
[420938275,1776755438182,-668.54005272,9.882e-05,2]
[420938276,1776755438192,-668.54005272,9.882e-05,2]
[420938277,1776755438202,-668.54005272,9.882e-05,2]
[420938278,1776755438212,-668.54005272,9.882e-05,2]
[420938279,1776755438222,-668.54005272,9.882e-05,2]
[420938280,1776755438232,-668.54005272,9.882e-05,2]
[420938282,1776755438242,-668.54005272,9.882e-05,2]
[420938284,1776755438253,-668.54005272,9.882e-05,2]
[420938286,1776755438263,-668.54005272,9.882e-05,2]
[420938289,1776755438273,-668.54005272,9.882e-05,2]
[420938291,1776755438283,-668.54005272,9.882e-05,2]
[420938293,1776755438293,-668.54005272,9.882e-05,2]
[420938295,1776755438303,-668.54005272,9.882e-05,2]
[420938297,1776755438312,-668.54005272,9.882e-05,2]
[420938299,1776755438322,-660.15334954,9.882e-05,2]
[420938301,1776755438332,-660.15334954,9.882e-05,2]
[420938303,1776755438343,-660.15334954,9.882e-05,2]
[420938305,1776755438352,-660.15334954,9.882e-05,2]
[420938306,1776755438361,-507.04065021,9.882e-05,2]
[420938309,1776755438374,-153.11269933,9.882e-05,2]
[420938310,1776755438384,-660.15334954,9.882e-05,2]
[420938311,1776755438393,-660.15334954,9.882e-05,2]
[420938312,1776755438405,-660.15334954,9.882e-05,2]
[420938313,1776755438415,-660.15334954,9.882e-05,2]
[420938314,1776755438425,-660.15334954,9.882e-05,2]
[420938315,1776755438434,-171.61014145,9.882e-05,2]
[420938316,1776755438458,-35.60986261,9.882e-05,2]
[420938317,1776755438475,-452.93334548,9.882e-05,2]
[420938318,1776755438485,-46.47200624,9.882e-05,2]
[420938319,1776755438509,-613.6813433,9.882e-05,2]
[420938320,1776755438518,-660.15334954,9.882e-05,2]
[420938321,1776755438528,-660.15334954,9.882e-05,2]
[420938322,1776755438537,-660.15334954,9.882e-05,2]
[420938323,1776755438547,-660.15334954,9.882e-05,2]
[420938324,1776755438556,-660.15334954,9.882e-05,2]
[420938325,1776755438566,-660.15334954,9.882e-05,2]
[420938326,1776755438575,-660.15334954,9.882e-05,2]
[420938327,1776755438585,-660.15334954,9.882e-05,2]
[420938328,1776755438595,-660.15334954,9.882e-05,2]
[420938329,1776755438604,-660.15334954,9.882e-05,2]
[420938330,1776755438614,-660.15334954,9.882e-05,2]
[420938331,1776755438624,-660.15334954,9.882e-05,2]
[420938332,1776755438633,-660.15334954,9.882e-05,2]
[420938333,1776755438643,-660.15334954,9.882e-05,2]
[420938334,1776755438652,-660.15334954,9.882e-05,2]
[420938335,1776755438662,-660.15334954,9.882e-05,2]
[420938336,1776755438672,-660.15334954,9.882e-05,2]
[420938337,1776755438681,-660.15334954,9.882e-05,2]
[420938338,1776755438690,-660.15334963,9.882e-05,2]
[420938339,1776755438700,-98825.53898889,9.883e-05,2]
[420938346,1776755441399,-6435.01180159,9.883e-05,2]
[420938347,1776755441489,-700.0,9.883e-05,2]
[420938348,1776755441501,-6842.88558204,9.883e-05,2]
[420938354,1776755442623,-1518.02,9.883e-05,2]
[420938361,1776755442678,-202447.20342748,9.883e-05,2]
[420938363,1776755442688,-150.0,9.884e-05,2]
[420938365,1776755442697,-400.0,9.9e-05,3]
[420938367,1776755442707,-151.0,9.958e-05,2]
[420938369,1776755442716,-150.0,9.973e-05,2]
[420938370,1776755442725,-150.0,9.973e-05,2]
[420938371,1776755442734,-150.0,9.973e-05,2]
[420938372,1776755442743,-150.0,9.973e-05,2]
[420938373,1776755442753,-353.11163478,9.981e-05,2]
[420938374,1776755442762,-721.12765535,9.981e-05,2]
[420938375,1776755442771,-1264.30599066,0.0001,2]
[420938376,1776755442780,-3165.06541463,0.0001,2]
[420938377,1776755442790,-2843.45817547,0.0001,2]
[420938378,1776755442799,-3462.17213585,0.0001,2]
[420938379,1776755442808,-3152.81515562,0.0001,2]
[420938380,1776755442817,-168.81186319,0.0001,2]
[420938381,1776755442827,-210.25263793,0.0001,2]
[420938382,1776755442836,-199.9630037,0.0001,2]
[420938383,1776755442846,-206.67841456,0.0001,2]
[420938384,1776755442856,-2087.81409609,0.0001,2]
[420938385,1776755442865,-200.0,0.0001,2]
[420938386,1776755442874,-151.0,0.0001,2]
[420938387,1776755442883,-151.0,0.0001,2]
[420938388,1776755442892,-151.0,0.0001,2]
[420938389,1776755442902,-151.0,0.0001,2]
[420938390,1776755442911,-151.0,0.0001,2]
[420938391,1776755442920,-151.0,0.0001,2]
[420938392,1776755442930,-151.0,0.0001,2]
[420938393,1776755442939,-151.0,0.0001,2]
[420938395,1776755442948,-151.0,0.0001,2]
[420938396,1776755442958,-151.0,0.0001,2]
[420938397,1776755442967,-239.01736763,0.0001,2]
[420938398,1776755442976,-800.0,0.0001,3]
[420938399,1776755442986,-500.0,0.0001,2]
[420938400,1776755442996,-500.0,0.0001,2]
[420938402,1776755443005,-500.0,0.0001,2]
[420938403,1776755443015,-500.0,0.0001,2]
[420938404,1776755443024,-500.0,0.0001,2]
[420938405,1776755443034,-151.0,0.0001,2]
[420938406,1776755443043,-500.0,0.0001,2]
[420938407,1776755443053,-151.0,0.0001,2]
[420938409,1776755443062,-221.9670566,0.0001,2]
[420938411,1776755443071,-151.0,0.0001,2]
[420938413,1776755443081,-151.0,0.0001,2]
[420938414,1776755443090,-151.0,0.0001,2]
[420938416,1776755443099,-151.0,0.0001,2]
[420938418,1776755443108,-151.0,0.0001,2]
[420938420,1776755443117,-151.0,0.0001,2]
[420938421,1776755443126,-151.0,0.0001,2]
[420938422,1776755443136,-151.0,0.0001,2]
[420938423,1776755443145,-151.0,0.0001,2]
[420938424,1776755443154,-153.09599367,0.0001,2]
[420938425,1776755443164,-1600.0,0.00010146,2]
[420938426,1776755443173,-150.0,0.00010151,2]
[420938427,1776755443183,-150.0,0.00010151,2]
[420938428,1776755443193,-150.0,0.00010151,2]
[420938429,1776755443203,-150.0,0.00010151,2]
[420938430,1776755443213,-181.87813958,0.00010156,2]
[420938431,1776755443222,-500.0,0.00010164,2]
[420938432,1776755443232,-500.0,0.00010164,2]
[420938433,1776755443241,-500.0,0.00010164,2]
[420938434,1776755443251,-500.0,0.00010164,2]
[420938435,1776755443260,-500.0,0.00010164,2]
[420938436,1776755443270,-500.0,0.00010164,2]
[420938437,1776755443280,-550.0,0.00010164,2]
[420938438,1776755443289,-500.0,0.00010164,2]
[420938439,1776755443299,-6580.7012706,0.00010166,2]
[420938440,1776755443309,-172.98,0.00010204,2]
[420938441,1776755443318,-250.0,0.00010208,2]
[420938442,1776755443328,-154.0,0.00010324,5]
[420938443,1776755443349,-212.0,0.00010324,5]
[420938444,1776755443360,-150.0,0.00010329,2]
[420938445,1776755443369,-150.0,0.00010329,2]
[420938446,1776755443379,-150.0,0.00010329,2]
[420938447,1776755443388,-150.0,0.00010329,2]
[420938448,1776755443398,-150.0,0.00010418,2]
[420938449,1776755443407,-151.31,0.00010421,2]
[420938450,1776755443416,-444.365,0.00010466,2]
[420938451,1776755443426,-2039.009,0.00010466,2]
[420938452,1776755443436,-831.66818748,0.00010486,2]
[420938453,1776755443446,-476.542,0.00010492,2]
[420938454,1776755443456,-150.0,0.00010574,2]
[420938455,1776755443465,-250.0,0.00010574,2]
[420938456,1776755443475,-156.347,0.00010574,2]
[420938457,1776755443486,-193.902,0.00010574,2]
[420938458,1776755443496,-215.312,0.00010574,2]
[420938459,1776755443506,-250.0,0.00010574,2]
[420938460,1776755443516,-241.132,0.00010574,2]
[420938461,1776755443525,-182.0,0.00010574,2]
[420938462,1776755443536,-623.0,0.00010574,2]
[420938463,1776755443546,-1048.0,0.00010574,2]
[420938464,1776755443555,-3530.0,0.00010574,2]
[420938465,1776755443564,-1349.0,0.00010574,2]
[420938466,1776755443575,-1265.0,0.00010574,2]
[420938467,1776755443585,-1219.0,0.00010574,2]
[420938468,1776755443596,-927.0,0.00010574,2]
[420938469,1776755443606,-1347.07012,0.0001059,2]
[420938470,1776755443616,-1347.07013,0.0001059,2]
[420938471,1776755443626,-5000.0,0.000106,2]
[420938472,1776755443635,-1347.07013,0.0001061,2]
[420938473,1776755443645,-1347.07013,0.0001064,2]
[420938474,1776755443655,-1711.7671267,0.00010671,2]
[420938475,1776755443664,-160.32577858,0.00010673,2]
[420938476,1776755443674,-160.016,0.00010673,2]
[420938477,1776755443684,-500.0,0.00010673,2]
[420938478,1776755443694,-182.43986584,0.00010685,2]
[420938479,1776755443703,-165.5771461,0.00010685,2]
[420938480,1776755443713,-158.46715015,0.00010685,2]
[420938481,1776755443723,-298.34951523,0.00010685,2]